[Event "94th FRA-ch Accession 2019"]
[Site "Chartres"]
[Date "2019.08.20"]
[Round "4.6"]
[White "Housieaux, David"]
[Black "Bujisho, Benjamin"]
[Result "1/2-1/2"]
[ECO "E92"]
[WhiteElo "2402"]
[BlackElo "2317"]
[Annotator "NA"]
[PlyCount "90"]
[EventDate "2019.08.17"]
[EventType "swiss"]
[EventCountry "FRA"]
[SourceTitle "playchess.com"]
[Source "ChessBase"]
[SourceQuality "1"]
[TimeControl "40/5400+30:1800+30"]

1. d4 {[%emt 0:00:00]} Nf6 {[%emt 0:01:39]} 2. c4 {[%emt 0:00:00]} g6 {[%emt 0:02:30]} 3. Nc3 {[%emt 0:00:00]} Bg7 {[%emt 0:01:22]} 4. e4 {[%emt 0:00:36]} d6 {[%emt 0:00:09]} 5. h3 {[%emt 0:01:44]} O-O {[%emt 0:00:43]} 6. Nf3 {[%emt 0:00:26]} e5 {[%emt 0:05:41]} 7. d5 {[%emt 0:00:21]} Na6 {[%emt 0:09:12]} 8. Be3 {[%emt 0:03:13]} Nc5 {[%emt 0:01:11]} 9. Nd2 {[%emt 0:00:21]} a5 {[%emt 0:00:26]} 10. g4 {[%emt 0:03:04]} c6 {[%emt 0:05:38]} 11. Be2 {[%emt 0:04:25]} Bd7 {[%emt 0:04:11]} 12. g5 {[%emt 0:15:24]} Ne8 {[%emt 0:01:24]} 13. Nb3 {[%emt 0:01:32]} Na6 {[%emt 0:03:56]} 14. Bg4 {[%emt 0:07:03]} f5 {[%emt 0:07:25]} 15. gxf6 {[%emt 0:01:41]} Nxf6 {[%emt 0:00:02]} 16. Bxd7 {[%emt 0:27:53]} Qxd7 {[%emt 0:00:17]} 17. dxc6 {[%emt 0:02:01]} bxc6 {[%emt 0:01:29]} 18. Nxa5 {[%emt 0:00:18]} d5 {[%emt 0:03:21]} 19. cxd5 {[%emt 0:09:41]} cxd5 {[%emt 0:04:41]} 20. Nxd5 {[%emt 0:04:02]} Nxd5 {[%emt 0:00:35]} 21. Qxd5+ {[%emt 0:04:00]} Qxd5 {[%emt 0:01:32]} 22. exd5 {[%emt 0:00:02]} Nb4 {[%emt 0:00:07]} 23. Nc4 {[%emt 0:03:44]} Nc2+ {[%emt 0:01:47]} 24. Ke2 {[%emt 0:01:36]} Nxa1 {[%emt 0:00:13]} 25. Rxa1 {[%emt 0:00:02]} e4 {[%emt 0:01:42]} 26. a4 {[%emt 0:04:09]} Rfb8 {[%emt 0:09:24]} 27. a5 {[%emt 0:00:56]} Rb4 {[%emt 0:03:34]} 28. Rc1 {[%emt 0:01:20]} Bxb2 {[%emt 0:00:37]} 29. Rc2 {[%emt 0:01:23]} Rc8 {[%emt 0:05:14]} 30. Rxb2 {[%emt 0:01:56]} Rxb2+ {[%emt 0:00:21]} 31. Nxb2 {[%emt 0:00:07]} Rc2+ {[%emt 0:00:03]} 32. Kd1 {[%emt 0:00:51]} Rxb2 {[%emt 0:00:05]} 33. a6 {[%emt 0:00:01]} g5 {[%emt 0:13:44]} 34. a7 {[%emt 0:01:21]} Ra2 {[%emt 0:00:07]} 35. Kc1 {[%emt 0:00:51]} h5 {[%emt 0:03:18]} 36. Kb1 {[%emt 0:00:02]} Ra6 {[%emt 0:00:20]} 37. Kc2 {[%emt 0:00:18]} h4 {[%emt 0:01:53]} 38. Bxg5 {[%emt 0:00:19]} Rxa7 {[%emt 0:00:04]} 39. d6 {[%emt 0:00:32]} Kf7 {[%emt 0:07:23]} 40. Bxh4 {[%emt 0:00:21]} Ke6 {[%emt 0:00:51]} 41. Bg3 {[%emt 0:31:01]} e3 {[%emt 0:07:24]} 42. fxe3 {[%emt 0:00:00]} Rg7 {[%emt 0:01:57]} 43. Be1 {[%emt 0:00:00]} Kxd6 {[%emt 0:00:33]} 44. Kd3 {[%emt 0:00:00]} Rg1 {[%emt 0:01:40]} 45. Bf2 {[%emt 0:00:00]} Ke5 {[%emt 0:22:45] Ke4+} 1/2-1/2

[Event "94th FRA-ch Accession 2019"]
[Site "Chartres"]
[Date "2019.08.21"]
[Round "5.1"]
[White "Lamard, Guillaume"]
[Black "Demuth, Adrien"]
[Result "1/2-1/2"]
[ECO "D14"]
[WhiteElo "2419"]
[BlackElo "2495"]
[Annotator "ChessBase"]
[PlyCount "57"]
[EventDate "2019.08.17"]
[EventType "swiss"]
[EventCountry "FRA"]
[SourceTitle "playchess.com"]
[Source "ChessBase"]
[SourceQuality "1"]
[TimeControl "40/5400+30:1800+30"]

1. d4 {[%emt 0:00:00]} d5 {[%emt 0:00:00]} 2. c4 {[%emt 0:00:06]} c6 {[%emt 0:00:00]} 3. cxd5 {[%emt 0:00:43]} cxd5 {[%emt 0:00:04]} 4. Nc3 {[%emt 0:00:11]} Nf6 {[%emt 0:00:23]} 5. Nf3 {[%emt 0:00:22]} Nc6 {[%emt 0:00:10]} 6. Bf4 {[%emt 0:00:16]} Nh5 {[%emt 0:00:34]} 7. Bc1 {[%emt 0:00:27]} Nf6 {[%emt 0:00:11]} 8. Bf4 {[%emt 0:00:08]} Bf5 {[%emt 0:00:05]} 9. e3 {[%emt 0:00:26]} e6 {[%emt 0:01:33]} 10. Bd3 {[%emt 0:01:18]} Bxd3 {[%emt 0:00:10]} 11. Qxd3 {[%emt 0:00:04]} Bd6 {[%emt 0:01:16]} 12. Bxd6 {[%emt 0:00:35]} Qxd6 {[%emt 0:00:08]} 13. O-O {[%emt 0:00:08]} O-O {[%emt 0:00:18]} 14. Rac1 {[%emt 0:00:41]} Rfc8 {[%emt 0:00:25]} 15. h3 {[%emt 0:00:09]} h6 {[%emt 0:00:16]} 16. Ne2 {[%emt 0:00:09]} Ne7 {[%emt 0:00:57]} 17. Rxc8+ {[%emt 0:00:19]} Rxc8 {[%emt 0:00:05]} 18. Rc1 {[%emt 0:00:06]} Rxc1+ {[%emt 0:00:26]} 19. Nxc1 {[%emt 0:00:04]} Qc7 {[%emt 0:00:25]} 20. Ne2 {[%emt 0:00:14]} Nd7 {[%emt 0:00:19]} 21. Qc3 {[%emt 0:00:13]} Qxc3 {[%emt 0:00:07]} 22. Nxc3 {[%emt 0:00:07]} Nc6 {[%emt 0:00:09]} 23. Kf1 {[%emt 0:00:10]} Kf8 {[%emt 0:00:20]} 24. Ke2 {[%emt 0:00:09]} Ke7 {[%emt 0:00:05]} 25. Kd3 {[%emt 0:00:07]} Kd6 {[%emt 0:00:17]} 26. Nb5+ {[%emt 0:00:06]} Ke7 {[%emt 0:00:07]} 27. Nc3 {[%emt 0:00:04]} Kd6 {[%emt 0:00:05]} 28. Nb5+ {[%emt 0:00:10]} Ke7 {[%emt 0:00:04]} 29. Nc3 {[%emt 0:00:03]} 1/2-1/2

[Event "94th FRA-ch Accession 2019"]
[Site "Chartres"]
[Date "2019.08.21"]
[Round "5.2"]
[White "Laurent-Paoli, Pierre"]
[Black "Stephan, Victor"]
[Result "1/2-1/2"]
[ECO "A61"]
[WhiteElo "2371"]
[BlackElo "2413"]
[Annotator "NA"]
[PlyCount "127"]
[EventDate "2019.08.17"]
[EventType "swiss"]
[EventCountry "FRA"]
[SourceTitle "playchess.com"]
[Source "ChessBase"]
[SourceQuality "1"]
[TimeControl "40/5400+30:1800+30"]

1. d4 {[%emt 0:00:00]} Nf6 {[%emt 0:00:00]} 2. c4 {[%emt 0:00:00]} e6 {[%emt 0:00:06]} 3. Nf3 {[%emt 0:00:00]} c5 {[%emt 0:00:58]} 4. d5 {[%emt 0:00:00]} d6 {[%emt 0:00:09]} 5. Nc3 {[%emt 0:00:00]} exd5 {[%emt 0:00:07]} 6. cxd5 {[%emt 0:00:00]} g6 {[%emt 0:00:07]} 7. Bf4 {[%emt 0:00:01]} a6 {[%emt 0:00:28]} 8. a4 {[%emt 0:00:03]} Bg7 {[%emt 0:00:12]} 9. h3 {[%emt 0:00:02]} O-O {[%emt 0:00:16]} 10. e3 {[%emt 0:00:01]} Ne8 {[%emt 0:01:34]} 11. Be2 {[%emt 0:00:57]} Nd7 {[%emt 0:00:13]} 12. O-O {[%emt 0:00:39]} Qe7 {[%emt 0:00:51]} 13. a5 {[%emt 0:06:22]} Rb8 {[%emt 0:06:22]} 14. Nd2 {[%emt 0:04:19]} Ne5 {[%emt 0:04:26]} 15. Qb3 {[%emt 0:07:01]} Nc7 {[%emt 0:04:25]} 16. Bh2 {[%emt 0:05:37]} f5 {[%emt 0:07:19]} 17. Na4 {[%emt 0:07:47]} Kh8 {[%emt 0:01:28]} 18. Nc4 {[%emt 0:09:16]} Nxc4 {[%emt 0:09:25]} 19. Bxc4 {[%emt 0:00:13]} Be5 {[%emt 0:01:06]} 20. Bxe5+ {[%emt 0:02:43]} Qxe5 {[%emt 0:00:31]} 21. Qc3 {[%emt 0:00:13]} Re8 {[%emt 0:05:55]} 22. Nb6 {[%emt 0:08:26]} Na8 {[%emt 0:06:09]} 23. Qxe5+ {[%emt 0:09:16]} Rxe5 {[%emt 0:01:32]} 24. Nxa8 {[%emt 0:02:15]} Rxa8 {[%emt 0:00:07]} 25. Ra3 {[%emt 0:00:01]} Bd7 {[%emt 0:11:13]} 26. Rb3 {[%emt 0:00:30]} Bb5 {[%emt 0:00:06]} 27. Bxb5 {[%emt 0:00:03]} axb5 {[%emt 0:00:08]} 28. Rxb5 {[%emt 0:00:02]} Rxd5 {[%emt 0:01:00]} 29. b4 {[%emt 0:11:59]} Re5 {[%emt 0:04:10]} 30. Rxb7 {[%emt 0:02:35]} cxb4 {[%emt 0:00:20]} 31. Rd1 {[%emt 0:00:12]} Ra6 {[%emt 0:04:28]} 32. Rxb4 {[%emt 0:00:45]} Rexa5 {[%emt 0:01:44]} 33. Rbd4 {[%emt 0:00:09]} Ra4 {[%emt 0:01:04]} 34. Rxa4 {[%emt 0:00:14]} Rxa4 {[%emt 0:00:06]} 35. Rxd6 {[%emt 0:00:02]} f4 {[%emt 0:00:57]} 36. exf4 {[%emt 0:00:02]} Rxf4 {[%emt 0:00:07]} 37. Rd7 {[%emt 0:00:02]} Ra4 {[%emt 0:01:25]} 38. g3 {[%emt 0:02:38]} h5 {[%emt 0:03:37]} 39. h4 {[%emt 0:03:10]} Kg8 {[%emt 0:00:21]} 40. Kg2 {[%emt 0:00:24]} Ra3 {[%emt 0:00:33]} 41. Rb7 {[%emt 0:31:47]} Rc3 {[%emt 0:30:18]} 42. Re7 {[%emt 0:03:40]} Ra3 {[%emt 0:00:12]} 43. Re5 {[%emt 0:01:12]} Kg7 {[%emt 0:01:28]} 44. Re3 {[%emt 0:00:02]} Ra2 {[%emt 0:00:48]} 45. Kf3 {[%emt 0:00:06]} Kf6 {[%emt 0:00:22]} 46. Rb3 {[%emt 0:00:03]} Ra6 {[%emt 0:00:32]} 47. Kf4 {[%emt 0:00:53]} Ra4+ {[%emt 0:00:19]} 48. Ke3 {[%emt 0:00:05]} Ra6 {[%emt 0:00:08]} 49. Rb4 {[%emt 0:01:00]} Ra2 {[%emt 0:01:21]} 50. f3 {[%emt 0:01:07]} Ra5 {[%emt 0:01:58]} 51. g4 {[%emt 0:00:48]} hxg4 {[%emt 0:00:15]} 52. fxg4 {[%emt 0:00:03]} Ra1 {[%emt 0:03:38]} 53. Rb6+ {[%emt 0:06:22]} Kg7 {[%emt 0:00:27]} 54. Rb7+ {[%emt 0:00:20]} Kf6 {[%emt 0:00:50]} 55. Rb6+ {[%emt 0:02:03]} Kg7 {[%emt 0:00:10]} 56. Rb5 {[%emt 0:02:12]} Ra4 {[%emt 0:01:09]} 57. Kf3 {[%emt 0:00:15]} Kf6 {[%emt 0:02:10]} 58. h5 {[%emt 0:01:28]} gxh5 {[%emt 0:00:06]} 59. Rxh5 {[%emt 0:00:03]} Kg6 {[%emt 0:00:19]} 60. Rb5 {[%emt 0:00:03]} Rc4 {[%emt 0:00:11]} 61. Kg3 {[%emt 0:00:03]} Rc1 {[%emt 0:00:17]} 62. Rb6+ {[%emt 0:00:07]} Kg5 {[%emt 0:00:07]} 63. Rb5+ {[%emt 0:00:01]} Kg6 {[%emt 0:00:05]} 64. Rb6+ {[%emt 0:10:18]} 1/2-1/2

[Event "94th FRA-ch Accession 2019"]
[Site "Chartres"]
[Date "2019.08.21"]
[Round "5.3"]
[White "Velten, Paul"]
[Black "Pigeat, Alexandre"]
[Result "1-0"]
[ECO "D03"]
[WhiteElo "2527"]
[BlackElo "2377"]
[Annotator "ChessBase"]
[PlyCount "105"]
[EventDate "2019.08.17"]
[EventType "swiss"]
[EventCountry "FRA"]
[SourceTitle "playchess.com"]
[Source "ChessBase"]
[SourceQuality "1"]
[TimeControl "40/5400+30:1800+30"]

1. d4 {[%emt 0:00:00]} d5 {[%emt 0:00:00]} 2. Nf3 {[%emt 0:00:00]} Nf6 {[%emt 0:00:00]} 3. Bg5 {[%emt 0:00:48]} h6 {[%emt 0:04:56]} 4. Bxf6 {[%emt 0:00:42]} exf6 {[%emt 0:00:14]} 5. e3 {[%emt 0:00:24]} Be6 {[%emt 0:05:34]} 6. Bd3 {[%emt 0:13:23]} c5 {[%emt 0:02:35]} 7. dxc5 {[%emt 0:00:54]} Bxc5 {[%emt 0:00:30]} 8. Nbd2 {[%emt 0:00:14]} Nc6 {[%emt 0:03:04]} 9. Nb3 {[%emt 0:00:46]} Bb6 {[%emt 0:00:58]} 10. Nfd4 {[%emt 0:00:21]} O-O {[%emt 0:01:06]} 11. O-O {[%emt 0:01:00]} Re8 {[%emt 0:04:09]} 12. c3 {[%emt 0:02:06]} a6 {[%emt 0:05:21]} 13. Qc2 {[%emt 0:02:24]} Ne5 {[%emt 0:01:28]} 14. Bf5 {[%emt 0:03:14]} Qc7 {[%emt 0:07:25]} 15. Rad1 {[%emt 0:01:50]} Rad8 {[%emt 0:00:06]} 16. Nc1 {[%emt 0:00:10]} Ng4 {[%emt 0:13:33]} 17. Bxg4 {[%emt 0:16:28]} Bxg4 {[%emt 0:00:25]} 18. Rd2 {[%emt 0:00:05]} Ba7 {[%emt 0:04:36]} 19. Nce2 {[%emt 0:01:35]} Bb8 {[%emt 0:03:58]} 20. g3 {[%emt 0:02:14]} Qe5 {[%emt 0:01:38]} 21. Nf4 {[%emt 0:01:23]} Ba7 {[%emt 0:05:00]} 22. h3 {[%emt 0:02:42]} Bc8 {[%emt 0:00:11]} 23. Rfd1 {[%emt 0:01:28]} Qe4 {[%emt 0:05:23]} 24. Kh2 {[%emt 0:03:04]} Bb8 {[%emt 0:04:19]} 25. Nde2 {[%emt 0:00:58]} Bxf4 {[%emt 0:06:37]} 26. Qxe4 {[%emt 0:00:34]} Rxe4 {[%emt 0:00:11]} 27. Nxf4 {[%emt 0:00:08]} Kf8 {[%emt 0:01:45]} 28. Rxd5 {[%emt 0:01:15]} Rxd5 {[%emt 0:00:07]} 29. Rxd5 {[%emt 0:03:25]} Rc4 {[%emt 0:05:33]} 30. Rd8+ {[%emt 0:00:42]} Ke7 {[%emt 0:00:06]} 31. Rg8 {[%emt 0:00:16]} Bf5 {[%emt 0:01:36]} 32. g4 {[%emt 0:02:26]} Bb1 {[%emt 0:00:38]} 33. a3 {[%emt 0:01:21]} Be4 {[%emt 0:03:02]} 34. Kg3 {[%emt 0:00:16]} g5 {[%emt 0:00:15]} 35. Ne2 {[%emt 0:00:18]} f5 {[%emt 0:00:32]} 36. Nd4 {[%emt 0:00:09]} fxg4 {[%emt 0:02:50]} 37. hxg4 {[%emt 0:00:05]} Kf6 {[%emt 0:00:26]} 38. Rh8 {[%emt 0:01:25]} Kg7 {[%emt 0:00:33]} 39. Re8 {[%emt 0:00:04]} Bd3 {[%emt 0:01:16]} 40. e4 {[%emt 0:00:21]} Rc7 {[%emt 0:00:13]} 41. f3 {[%emt 0:31:07]} Rd7 {[%emt 0:31:07]} 42. Kf2 {[%emt 0:01:25]} Kf6 {[%emt 0:04:24]} 43. Ke3 {[%emt 0:01:50]} Bc4 {[%emt 0:00:11]} 44. b3 {[%emt 0:00:14]} Be6 {[%emt 0:00:05]} 45. a4 {[%emt 0:01:13]} Rc7 {[%emt 0:00:00]} 46. c4 {[%emt 0:00:00]} Rc5 {[%emt 0:00:00]} 47. Rh8 {[%emt 0:00:00]} Kg7 {[%emt 0:00:00]} 48. Rd8 {[%emt 0:00:00]} Kf6 {[%emt 0:00:00]} 49. Nxe6 {[%emt 0:00:00]} fxe6 {[%emt 0:00:00]} 50. Rd7 {[%emt 0:00:00]} b6 {[%emt 0:00:00]} 51. Rd6 {[%emt 0:00:00]} b5 {[%emt 0:00:00]} 52. Kd4 {[%emt 0:00:00]} Rc8 {[%emt 0:00:00]} 53. e5+ {[%emt 0:00:00]} 1-0

[Event "94th FRA-ch Accession 2019"]
[Site "Chartres"]
[Date "2019.08.21"]
[Round "5.4"]
[White "Gatineau, Yovann"]
[Black "Bailet, Pierre"]
[Result "1/2-1/2"]
[ECO "A45"]
[WhiteElo "2363"]
[BlackElo "2490"]
[Annotator "ChessBase"]
[PlyCount "55"]
[EventDate "2019.08.17"]
[EventType "swiss"]
[EventCountry "FRA"]
[SourceTitle "playchess.com"]
[Source "ChessBase"]
[SourceQuality "1"]
[TimeControl "40/5400+30:1800+30"]

1. d4 {[%emt 0:06:23]} Nf6 {[%emt 0:00:00]} 2. Bf4 {[%emt 0:00:05]} g6 {[%emt 0:01:11]} 3. Nc3 {[%emt 0:00:05]} d5 {[%emt 0:00:25]} 4. e3 {[%emt 0:00:04]} Bg7 {[%emt 0:00:42]} 5. h4 {[%emt 0:00:04]} h5 {[%emt 0:00:32]} 6. Nf3 {[%emt 0:00:04]} O-O {[%emt 0:04:28]} 7. Ne5 {[%emt 0:03:11]} Nbd7 {[%emt 0:04:36]} 8. f3 {[%emt 0:00:40]} c6 {[%emt 0:02:24]} 9. Qd2 {[%emt 0:00:49]} Nxe5 {[%emt 0:01:35]} 10. Bxe5 {[%emt 0:00:09]} b5 {[%emt 0:13:47]} 11. O-O-O {[%emt 0:07:04]} Qa5 {[%emt 0:03:01]} 12. a3 {[%emt 0:12:55]} b4 {[%emt 0:09:42]} 13. Na2 {[%emt 0:02:59]} c5 {[%emt 0:00:55]} 14. Kb1 {[%emt 0:06:11]} Bf5 {[%emt 0:18:30]} 15. axb4 {[%emt 0:06:59]} cxb4 {[%emt 0:00:12]} 16. Nxb4 {[%emt 0:00:11]} Qa4 {[%emt 0:02:55]} 17. Bd3 {[%emt 0:07:50]} a5 {[%emt 0:02:27]} 18. Na6 {[%emt 0:01:31]} Bxd3 {[%emt 0:04:25]} 19. Qxd3 {[%emt 0:00:11]} Rfc8 {[%emt 0:04:48]} 20. Nc5 {[%emt 0:00:55]} Qc6 {[%emt 0:00:37]} 21. g4 {[%emt 0:03:57]} hxg4 {[%emt 0:00:29]} 22. Bxf6 {[%emt 0:08:14]} Qxf6 {[%emt 0:00:21]} 23. c3 {[%emt 0:01:50]} Qxf3 {[%emt 0:06:09]} 24. Rdf1 {[%emt 0:09:25]} Qg2 {[%emt 0:00:29]} 25. Rfg1 {[%emt 0:00:21]} Qf2 {[%emt 0:00:34]} 26. Rf1 {[%emt 0:00:22]} Qg2 {[%emt 0:00:08]} 27. Rfg1 {[%emt 0:09:20]} Qf2 {[%emt 0:00:19]} 28. Rf1 {[%emt 0:08:33]} 1/2-1/2

[Event "94th FRA-ch Accession 2019"]
[Site "Chartres"]
[Date "2019.08.21"]
[Round "5.5"]
[White "Bujisho, Benjamin"]
[Black "Maurizzi, Marc Andria"]
[Result "1/2-1/2"]
[ECO "A07"]
[WhiteElo "2317"]
[BlackElo "2419"]
[Annotator "NA"]
[PlyCount "42"]
[EventDate "2019.08.17"]
[EventType "swiss"]
[EventCountry "FRA"]
[SourceTitle "playchess.com"]
[Source "ChessBase"]
[SourceQuality "1"]
[TimeControl "40/5400+30:1800+30"]

1. Nf3 {[%emt 0:00:00]} d5 {[%emt 0:00:00]} 2. g3 {[%emt 0:00:10]} g6 {[%emt 0:00:00]} 3. Bg2 {[%emt 0:03:35]} Bg7 {[%emt 0:00:08]} 4. O-O {[%emt 0:00:53]} e5 {[%emt 0:00:04]} 5. d3 {[%emt 0:03:07]} Ne7 {[%emt 0:00:09]} 6. e4 {[%emt 0:03:56]} O-O {[%emt 0:00:22]} 7. Nbd2 {[%emt 0:04:22]} Nbc6 {[%emt 0:05:02]} 8. c3 {[%emt 0:01:48]} a5 {[%emt 0:02:06]} 9. Qc2 {[%emt 0:04:08]} h6 {[%emt 0:03:36]} 10. Re1 {[%emt 0:04:04]} Be6 {[%emt 0:04:03]} 11. exd5 {[%emt 0:02:39]} Bxd5 {[%emt 0:00:41]} 12. b3 {[%emt 0:02:21]} Re8 {[%emt 0:10:53]} 13. a3 {[%emt 0:03:38]} Qd7 {[%emt 0:03:44]} 14. Bb2 {[%emt 0:00:16]} Rad8 {[%emt 0:03:05]} 15. b4 {[%emt 0:06:40]} Nf5 {[%emt 0:26:16]} 16. Rad1 {[%emt 0:02:10]} axb4 {[%emt 0:00:48]} 17. axb4 {[%emt 0:00:03]} Nd6 {[%emt 0:03:08]} 18. Qb1 {[%emt 0:07:23]} b5 {[%emt 0:11:35]} 19. c4 {[%emt 0:14:08]} Bxf3 {[%emt 0:04:35]} 20. Nxf3 {[%emt 0:01:12]} Qc8 {[%emt 0:08:41]} 21. cxb5 {[%emt 0:22:38]} Nxb5 {[%emt 0:00:26]} 1/2-1/2

[Event "94th FRA-ch Accession 2019"]
[Site "Chartres"]
[Date "2019.08.21"]
[Round "5.6"]
[White "Gertosio, Franck"]
[Black "Housieaux, David"]
[Result "1/2-1/2"]
[ECO "C02"]
[WhiteElo "2267"]
[BlackElo "2402"]
[Annotator "NA"]
[PlyCount "144"]
[EventDate "2019.08.17"]
[EventType "swiss"]
[EventCountry "FRA"]
[SourceTitle "playchess.com"]
[Source "ChessBase"]
[SourceQuality "1"]
[TimeControl "40/5400+30:1800+30"]

1. e4 {[%emt 0:00:00]} e6 {[%emt 0:00:09]} 2. d4 {[%emt 0:00:00]} d5 {[%emt 0:00:06]} 3. e5 {[%emt 1:31:30]} c5 {[%emt 0:00:32]} 4. c3 {[%emt 0:00:01]} Nc6 {[%emt 0:00:06]} 5. Nf3 {[%emt 0:00:04]} Bd7 {[%emt 0:00:35]} 6. Bd3 {[%emt 0:01:33]} cxd4 {[%emt 0:02:49]} 7. cxd4 {[%emt 0:03:26]} Qb6 {[%emt 0:00:06]} 8. O-O {[%emt 1:28:56]} Nxd4 {[%emt 0:00:15]} 9. Nbd2 {[%emt 0:00:18]} Nc6 {[%emt 0:09:27]} 10. Nb3 {[%emt 0:02:08]} Nge7 {[%emt 0:03:02]} 11. Be3 {[%emt 1:27:52]} Qc7 {[%emt 0:00:44]} 12. Rc1 {[%emt 0:00:33]} Ng6 {[%emt 0:07:09]} 13. Nc5 {[%emt 0:09:44]} Bxc5 {[%emt 0:19:11]} 14. Bxc5 {[%emt 0:00:31]} Ngxe5 {[%emt 0:00:05]} 15. Nxe5 {[%emt 0:07:05]} Nxe5 {[%emt 0:01:16]} 16. f4 {[%emt 0:01:58]} Nc4 {[%emt 0:09:43]} 17. Bd4 {[%emt 0:03:23]} Bc6 {[%emt 0:43:15]} 18. b3 {[%emt 0:04:12]} Nd6 {[%emt 0:01:22]} 19. Bxg7 {[%emt 0:08:50]} Rg8 {[%emt 0:01:35]} 20. Bf6 {[%emt 0:00:41]} Ne4 {[%emt 0:41:20]} 21. Bxe4 {[%emt 0:08:57]} dxe4 {[%emt 0:00:04]} 22. f5 {[%emt 0:01:50]} e3 {[%emt 0:03:04]} 23. Rc2 {[%emt 0:12:20]} Be4 {[%emt 0:02:30]} 24. fxe6 {[%emt 0:09:42]} fxe6 {[%emt 0:04:01]} 25. Rb2 {[%emt 0:09:02]} Qc5 {[%emt 0:03:59]} 26. Kh1 {[%emt 0:02:26]} Rc8 {[%emt 0:02:51]} 27. b4 {[%emt 0:00:08]} Qd5 {[%emt 0:01:31]} 28. Qxd5 {[%emt 0:01:41]} Bxd5 {[%emt 0:00:47]} 29. Bd4 {[%emt 0:00:47]} Rc4 {[%emt 0:07:19]} 30. Bxe3 {[%emt 0:00:19]} Rcg4 {[%emt 0:00:18]} 31. Rff2 {[%emt 0:13:26]} Re4 {[%emt 0:00:49]} 32. Rfe2 {[%emt 0:00:06]} a6 {[%emt 0:00:32]} 33. Kg1 {[%emt 0:00:19]} Bc4 {[%emt 0:00:47]} 34. Re1 {[%emt 0:00:08]} Rf8 {[%emt 0:00:26]} 35. Rf2 {[%emt 0:13:12]} Rxf2 {[%emt 0:00:08]} 36. Bxf2 {[%emt 0:00:20]} Rxe1+ {[%emt 0:02:10]} 37. Bxe1 {[%emt 0:00:05]} Bxa2 {[%emt 0:00:01]} 38. Kf2 {[%emt 0:00:34]} Kd7 {[%emt 0:00:07]} 39. Ke3 {[%emt 0:00:35]} Kd6 {[%emt 0:00:02]} 40. g4 {[%emt 0:01:48]} e5 {[%emt 0:00:42]} 41. h4 {[%emt 0:30:34]} Bb3 {[%emt 0:33:46]} 42. g5 {[%emt 0:02:31]} Bd1 {[%emt 0:01:06]} 43. Bd2 {[%emt 0:04:58]} Ke6 {[%emt 0:01:32]} 44. Be1 {[%emt 0:01:40]} Kf5 {[%emt 0:00:04]} 45. Bc3 {[%emt 0:02:01]} Bh5 {[%emt 0:00:00]} 46. Bb2 {[%emt 0:00:00]} Be8 {[%emt 0:00:00]} 47. Bc3 {[%emt 0:00:00]} Bc6 {[%emt 0:00:00]} 48. Bb2 {[%emt 0:02:56]} Be8 {[%emt 0:00:00]} 49. Bc3 {[%emt 0:00:00]} b6 {[%emt 0:00:00]} 50. Bd2 {[%emt 0:00:00]} Bc6 {[%emt 0:00:00]} 51. Bc3 {[%emt 0:00:00]} Be8 {[%emt 0:00:00]} 52. Be1 {[%emt 0:00:00]} Bg6 {[%emt 0:00:00]} 53. Kf3 {[%emt 0:00:00]} e4+ {[%emt 0:00:00]} 54. Ke2 {[%emt 0:05:56]} Ke5 {[%emt 0:00:00]} 55. Ke3 {[%emt 0:00:00]} Kd5 {[%emt 0:00:00]} 56. Bd2 {[%emt 0:00:00]} Kc4 {[%emt 0:00:00]} 57. h5 {[%emt 0:00:00]} Bxh5 {[%emt 0:00:00]} 58. Kxe4 {[%emt 0:00:00]} Bg6+ {[%emt 0:00:00]} 59. Ke3 {[%emt 0:00:00]} Kb5 {[%emt 0:00:00]} 60. Kd4 {[%emt 0:00:00]} Bb1 {[%emt 0:00:00]} 61. Kc3 {[%emt 0:00:00]} Bf5 {[%emt 0:00:00]} 62. Be3 {[%emt 0:00:00]} Be6 {[%emt 0:00:00]} 63. Bf2 {[%emt 0:00:00]} a5 {[%emt 0:00:00]} 64. bxa5 {[%emt 0:00:00]} Kxa5 {[%emt 0:00:00]} 65. Kb2 {[%emt 0:00:00]} b5 {[%emt 0:00:00]} 66. Be3 {[%emt 0:00:00]} b4 {[%emt 0:00:00]} 67. Bc1 {[%emt 0:00:00]} Kb5 {[%emt 0:00:00]} 68. Bf4 {[%emt 0:00:00]} Kc4 {[%emt 0:00:00]} 69. Bd2 {[%emt 0:00:00]} Bf7 {[%emt 0:00:00]} 70. Be1 {[%emt 0:00:00]} b3 {[%emt 0:00:00]} 71. Bd2 {[%emt 0:00:00]} Kd3 {[%emt 0:00:00]} 72. Bc1 {[%emt 0:00:00]} Ke2 {[%emt 0:00:00]} 1/2-1/2

[Event "94th FRA-ch Accession 2019"]
[Site "Chartres"]
[Date "2019.08.22"]
[Round "6.1"]
[White "Stephan, Victor"]
[Black "Velten, Paul"]
[Result "1/2-1/2"]
[ECO "E32"]
[WhiteElo "2413"]
[BlackElo "2527"]
[Annotator "ChessBase"]
[PlyCount "63"]
[EventDate "2019.08.17"]
[EventType "swiss"]
[EventCountry "FRA"]
[SourceTitle "playchess.com"]
[Source "ChessBase"]
[SourceQuality "1"]
[TimeControl "40/5400+30:1800+30"]

1. d4 {[%emt 0:00:00]} Nf6 {[%emt 0:00:00]} 2. c4 {[%emt 0:00:00]} e6 {[%emt 0:00:16]} 3. Nc3 {[%emt 0:00:19]} Bb4 {[%emt 0:01:43]} 4. Qc2 {[%emt 0:00:38]} O-O {[%emt 0:00:40]} 5. Nf3 {[%emt 0:00:09]} d6 {[%emt 0:08:00]} 6. g3 {[%emt 0:00:13]} b6 {[%emt 0:03:23]} 7. Bg2 {[%emt 0:00:13]} Bb7 {[%emt 0:00:28]} 8. O-O {[%emt 0:00:14]} Bxc3 {[%emt 0:05:46]} 9. Qxc3 {[%emt 0:00:09]} Nbd7 {[%emt 0:01:23]} 10. b3 {[%emt 0:01:10]} Qe7 {[%emt 0:03:45]} 11. Bb2 {[%emt 0:04:29]} Rac8 {[%emt 0:07:08]} 12. Rad1 {[%emt 0:07:15]} Be4 {[%emt 0:01:33]} 13. d5 {[%emt 0:03:40]} e5 {[%emt 0:01:17]} 14. Bh3 {[%emt 0:02:52]} h6 {[%emt 0:01:25]} 15. Nh4 {[%emt 0:02:59]} a5 {[%emt 0:01:04]} 16. f3 {[%emt 0:08:33]} Bh7 {[%emt 0:01:01]} 17. Nf5 {[%emt 0:00:07]} Bxf5 {[%emt 0:02:31]} 18. Bxf5 {[%emt 0:00:06]} Ra8 {[%emt 0:00:15]} 19. Bc2 {[%emt 0:06:57]} Nc5 {[%emt 0:01:12]} 20. e4 {[%emt 0:05:40]} Rfe8 {[%emt 0:05:45]} 21. a3 {[%emt 0:00:52]} Qd7 {[%emt 0:01:31]} 22. a4 {[%emt 0:04:12]} Re7 {[%emt 0:04:19]} 23. Rf2 {[%emt 0:02:53]} Kh8 {[%emt 0:02:11]} 24. Bc1 {[%emt 0:02:06]} Qh3 {[%emt 0:11:05]} 25. Be3 {[%emt 0:01:53]} Nfd7 {[%emt 0:03:08]} 26. Rg2 {[%emt 0:01:41]} Nf8 {[%emt 0:01:34]} 27. Rf1 {[%emt 0:01:22]} Ng6 {[%emt 0:00:49]} 28. Qd2 {[%emt 0:01:12]} Kg8 {[%emt 0:03:08]} 29. Qf2 {[%emt 0:06:42]} Rae8 {[%emt 0:01:34]} 30. Qd2 {[%emt 0:01:27]} Ra8 {[%emt 0:01:08]} 31. Qf2 {[%emt 0:01:10]} Rae8 {[%emt 0:00:05]} 32. Qd2 {[%emt 0:00:03]} 1/2-1/2